{"text_format":"1","workbook":"xlsx","n_sheets":1,"sheets":["Лист1"],"not_rendered":{"charts":0,"images":0,"macros":1,"external_links":0,"defined_names":2,"comments":0,"pivot_tables":0},"unopened":[],"bounds":{"document_bytes":16777216,"sheet_cells":100000,"rows_first":2000,"rows_last":500,"rows_between":2000,"halvings":0,"cell_chars":16384,"cell_head_chars":4096},"cells_cut":0,"cells_raw":0,"read":"whole","date_system":"1900"}

{"sheet":"Лист1","index":0,"n_rows":39,"n_cols":27,"rows_kept":39,"cut":false,"hidden":false,"merged":[[36,26,36,29],[37,26,37,29],[38,26,38,29],[27,26,27,29],[28,26,28,29],[29,26,29,29],[30,26,30,29],[31,26,31,29],[32,26,32,29],[33,26,33,29],[34,26,34,29],[35,26,35,29],[7,23,7,25],[7,26,7,29],[5,23,5,25],[5,26,5,29],[6,2,6,17],[6,18,6,19],[6,20,6,22],[6,23,6,25],[6,26,6,29],[5,2,5,17],[5,18,5,19],[5,20,5,22],[7,2,7,17],[7,18,7,19],[7,20,7,22],[10,2,10,17],[10,18,10,19],[10,20,10,22],[10,23,10,25],[10,26,10,29],[9,26,9,29],[9,2,9,17],[9,18,9,19],[9,20,9,22],[9,23,9,25],[12,2,12,17],[12,18,12,19],[12,20,12,22],[12,23,12,25],[12,26,12,29],[11,2,11,17],[11,18,11,19],[11,20,11,22],[11,23,11,25],[11,26,11,29],[13,2,13,17],[13,18,13,19],[13,20,13,22],[13,23,13,25],[13,26,13,29],[14,2,14,17],[14,18,14,19],[14,20,14,22],[14,23,14,25],[14,26,14,29],[18,2,18,17],[18,18,18,19],[18,20,18,22],[18,23,18,25],[18,26,18,29],[17,2,17,17],[17,18,17,19],[17,20,17,22],[17,23,17,25],[17,26,17,29],[20,2,20,17],[20,18,20,19],[20,20,20,22],[20,23,20,25],[20,26,20,29],[19,2,19,17],[19,18,19,19],[19,20,19,22],[19,23,19,25],[19,26,19,29],[22,21,22,25],[22,26,22,29],[21,2,21,17],[21,18,21,19],[21,20,21,22],[21,23,21,25],[21,26,21,29],[15,2,15,17],[15,18,15,19],[15,20,15,22],[15,23,15,25],[15,26,15,29],[16,26,16,29],[16,23,16,25],[16,20,16,22],[16,18,16,19],[16,2,16,17],[8,26,8,29],[8,23,8,25],[8,20,8,22],[8,18,8,19],[8,2,8,17]]}
[]
[]
[1,2,3,4,5,6,7,8,9,10,11,12,13,14,15,16,17,18,19,20,21,22,23,24,25,26,27]
[]
[]
[null,"№ пп","наименование",null,null,null,null,null,null,null,null,null,null,null,null,null,null,null,"ед. изм.",null,"к-во",null,null,"цена",null,null,"сумма"]
[null,1,null,null,null,null,null,null,null,null,null,null,null,null,null,null,null,null,"шт",null,14.64,null,null,12.42,null,null,{"$f":"U7*X7","v":181.8288}]
[null,2,null,null,null,null,null,null,null,null,null,null,null,null,null,null,null,null,"шт",null,15953.92,null,null,13.94,null,null,{"$f":"U8*X8","v":222397.64479999998}]
[null,3,null,null,null,null,null,null,null,null,null,null,null,null,null,null,null,null,"т",null,-0.4,null,null,21200.23,null,null,-8480.0920000000006]
[null,4,null,null,null,null,null,null,null,null,null,null,null,null,null,null,null,null,"т",null,0,null,null,58999.43,null,null,0]
[null,5,null,null,null,null,null,null,null,null,null,null,null,null,null,null,null,null,"т",null,-0.09,null,null,191029.51,null,null,-17192.655900000002]
[null,6,null,null,null,null,null,null,null,null,null,null,null,null,null,null,null,null,"т",null,0.01,null,null,99285.94,null,null,992.85940000000005]
[null,7,null,null,null,null,null,null,null,null,null,null,null,null,null,null,null,null,"м3",null,0.01,null,null,8919.17,null,null,89.191699999999997]
[null,8,null,null,null,null,null,null,null,null,null,null,null,null,null,null,null,null,"т",null,48.54,null,null,null,null,null,0]
[null,9,null,null,null,null,null,null,null,null,null,null,null,null,null,null,null,null,"т",null,-0.5,null,null,3462.24,null,null,-1731.12]
[null,10,null,null,null,null,null,null,null,null,null,null,null,null,null,null,null,null,"м3",null,0.12,null,null,8245.15,null,null,989.41799999999989]
[null,11,null,null,null,null,null,null,null,null,null,null,null,null,null,null,null,null,"м3",null,0,null,null,4431.17,null,null,0]
[null,12,null,null,null,null,null,null,null,null,null,null,null,null,null,null,null,null,"м3",null,0.02,null,null,8919.17,null,null,178.38339999999999]
[null,13,null,null,null,null,null,null,null,null,null,null,null,null,null,null,null,null,"м",null,0,null,null,357.78,null,null,0]
[null,14,null,null,null,null,null,null,null,null,null,null,null,null,null,null,null,null,"т",null,0,null,null,217668.81,null,null,0]
[null,15,null,null,null,null,null,null,null,null,null,null,null,null,null,null,null,null,"т",null,0,null,null,202221.47,null,null,{"$f":"U21*X21","v":0}]
[null,16,null,null,null,null,null,null,null,null,null,null,null,null,null,null,null,null,"т",null,0.01,null,null,49005.91,null,null,490.05910000000006]
[null,null,null,null,null,null,null,null,null,null,null,null,null,null,null,null,null,null,null,null,null,"ВСЕГО:",null,null,null,null,{"$f":"ROUND(SUM(AA6:INDEX(AA:AA,ROW()-1)),2)","v":197915.51999999999}]
[]
[]
[]
[]
[null,null,null,null,null,null,null,null,null,null,null,null,null,null,null,null,null,null,null,null,null,null,null,null,null,null,{"$f":"U28*X28","v":0}]
[null,null,null,null,null,null,null,null,null,null,null,null,null,null,null,null,null,null,null,null,null,null,null,null,null,null,{"$f":"U29*X29","v":0}]
[null,null,null,null,null,null,null,null,null,null,null,null,null,null,null,null,null,null,null,null,null,null,null,null,null,null,0]
[null,null,null,null,null,null,null,null,null,null,null,null,null,null,null,null,null,null,null,null,null,null,null,null,null,null,0]
[null,null,null,null,null,null,null,null,null,null,null,null,null,null,null,null,null,null,null,null,null,null,null,null,null,null,0]
[null,null,null,null,null,null,null,null,null,null,null,null,null,null,null,null,null,null,null,null,null,null,null,null,null,null,0]
[null,null,null,null,null,null,null,null,null,null,null,null,null,null,null,null,null,null,null,null,null,null,null,null,null,null,0]
[null,null,null,null,null,null,null,null,null,null,null,null,null,null,null,null,null,null,null,null,null,null,null,null,null,null,0]
[null,null,null,null,null,null,null,null,null,null,null,null,null,null,null,null,null,null,null,null,null,null,null,null,null,null,0]
[null,null,null,null,null,null,null,null,null,null,null,null,null,null,null,null,null,null,null,null,null,null,null,null,null,null,0]
[null,null,null,null,null,null,null,null,null,null,null,null,null,null,null,null,null,null,null,null,null,null,null,null,null,null,0]
[null,null,null,null,null,null,null,null,null,null,null,null,null,null,null,null,null,null,null,null,null,null,null,null,null,null,0]